Cogmind - Beta 13 @@@ ROGUE MODE // 2024.04.17 @ 20:16:03 Player: darki Result: Destroyed by G-34 Mercenary with Small Laser Performance ------------- Evolutions (0) 0 Regions Visited (4) 800 Robots Destroyed (19) 95 Value Destroyed (500) 500 Prototype IDs (0) 0 Alien Tech Used (0) 0 Bonus (0) 0 TOTAL SCORE: 1395 Bonus ------- None Cogmind --------- Core Integrity 0/250 Matter 253/300 Energy 74/100 System Corruption 0% Temperature Cool (6) Movement Core (150) Ox2 Location -9/Mines Parts ------- > --- POWER (1) -------- (None) > --- PROPULSION (2) --- (None) > --- UTILITY (2) ------ Improved Heat Sink > --- WEAPON (2) ------- Particle Gun Rocket Launcher > --- INVENTORY (5) ---- Hacking Suite Small Laser Datajack Stasis Trap (100%) Peak State ------------ > --- POWER ------------ Ion Engine > --- PROPULSION ------- Aluminum Leg Aluminum Leg > --- UTILITY ---------- Improved Heat Sink High-capacity Storage Unit > --- WEAPON ----------- Small Laser Particle Gun > --- INVENTORY -------- Fission Core Light Fission Core Structural Scanner Hacking Suite Medium Laser Small Laser Grenade Launcher Rocket Launcher Datajack Mining Laser Hammer Stasis Trap [Rating: 12] Favorites ----------- Power Light Nuclear Core Engine Ion Engine Power Core Light Nuclear Core Propulsion Aluminum Leg Leg Aluminum Leg Utility High-capacity Storage Unit Device Heat Sink Storage High-capacity Storage Unit Processor Signal Interpreter Weapon Medium Laser Energy Gun Medium Laser Launcher Rocket Launcher Build | -11 -10 -10 -10 -9 ------- Run | Yrd Mat Min Exi Min Slots Evolved . | . . . . . Power . | . . . . . Propulsion . | . . . . . Utility . | . . . . . Weapon . | . . . . . Parts Attached 24 | . 12 8 3 1 Power 4 | . 3 1 . . Engine 2 | . 1 1 . . Core 2 | . 2 . . . Reactor . | . . . . . Propulsion 4 | . 3 1 . . Treads . | . . . . . Leg 4 | . 3 1 . . Wheel . | . . . . . Hover . | . . . . . Flight . | . . . . . Utility 9 | . 5 1 3 . Device 3 | . 1 1 1 . Storage 5 | . 3 . 2 . Processor 1 | . 1 . . . Hackware . | . . . . . Protection . | . . . . . Artifact . | . . . . . Weapon 7 | . 1 5 . 1 Energy Gun 6 | . 1 5 . . Energy Cannon . | . . . . . Ballistic Gun . | . . . . . Ballistic Cannon . | . . . . . Launcher 1 | . . . . 1 Special Weapon . | . . . . . Impact Weapon . | . . . . . Slashing Weapon . | . . . . . Piercing Weapon . | . . . . . Special Melee Weapon . | . . . . . Unidentified Prototypes . | . . . . . Parts Lost 8 | . . 5 2 1 Power 2 | . . 1 1 . Propulsion 3 | . . 1 1 1 Utility 1 | . . 1 . . Weapon 2 | . . 2 . . Highest Loss Streak 3 | . . 3 2 3 To Critical Strikes . | . . . . . Average Slot Usage (%) 97 | . 99 95 97 42 Engine 6 | . 3 3 13 . Core 7 | . 10 9 . . Leg 27 | . 28 28 27 . Device 11 | . 10 10 14 14 Storage 13 | . 14 14 13 . Processor 1 | . 2 . . . Energy Gun 27 | . 28 27 28 14 Naked Turns . | . . . . . Heaviest Build 50 | 14 50 50 50 . Greatest Support 20 | 20 20 20 20 . Greatest Overweight (x) 2 | . 2 2 2 . Average Overweight (x) 1 | . . 2 1 . Largest Inventory Capacity 25 | . 25 20 20 5 Average Capacity 16 | . 12 20 19 5 Most Carried 14 | . 9 14 13 4 Average Carried 10 | . 7 12 12 4 Final Capacity 20 | 8 20 20 5 5 Final Carried 13 | 6 9 13 4 4 Class Distribution -------------------- 100% | Mutant Dominant Class ---------------- Mutant | -10/Materials Mutant | -10/Mines Mutant | -10/Exiles Mutant | -9/Mines Resources | -11 -10 -10 -10 -9 ----------- Run | Yrd Mat Min Exi Min Matter Collected 390 | 200 120 70 . . Remotely . | . . . . . Salvage Created 644 | . 397 189 . 58 Parts 31 | . 21 6 . 4 Haulers Intercepted 1 | . 1 . . . Recyclers Shooed . | . . . . . Parts Field Recycled . | . . . . . Retrieved Matter . | . . . . . Parts Self-Destructed . | . . . . . Prevented . | . . . . . Kills | -11 -10 -10 -10 -9 ------- Run | Yrd Mat Min Exi Min Combat Hostiles Destroyed 14 | . 9 4 . 1 Guns 13 | . 9 4 . . AOE 1 | . . . . 1 Classes Destroyed 8 | . 6 . . 2 Worker 1 | . 1 . . . Tunneler 1 | . . . . 1 Hauler 1 | . 1 . . . Operator 1 | . 1 . . . Watcher 1 | . 1 . . . Swarmer 3 | . 3 . . . Grunt 10 | . 6 4 . . Brawler 1 | . . . . 1 Best Kill Streak 3 | . 3 2 . 2 Combat Bots Only 3 | . 3 2 . 1 Max Kills in Single Turn 2 | . 1 1 . 2 Gunslinging . | . . . . . Exploded 1 | . . . . 1 Melee . | . . . . . Uniques/NPCs Destroyed . | . . . . . Combat | -11 -10 -10 -10 -9 -------- Run | Yrd Mat Min Exi Min Hostile Shots Fired 106 | . 54 31 15 6 Missed 30 | . 17 7 5 1 Damage Taken 1020 | . 500 278 187 55 Core 252 | . 111 38 70 33 Absorbed by Shields 53 | . . 53 . . Core Remaining (%) 100 | 100 . . . . Volleys Fired 68 | . 44 20 2 2 Largest 2 | . 2 2 2 2 Hottest 105 | . 100 100 105 98 Shots Fired 129 | . 88 33 4 4 Gun 127 | . 88 33 4 2 Cannon . | . . . . . Launcher 2 | . . . . 2 Special . | . . . . . Kinetic . | . . . . . Thermal 123 | . 88 29 4 2 Explosive 2 | . . . . 2 Electromagnetic 4 | . . 4 . . Robot Hit Streak 12 | . 12 9 . 4 Robot Miss Streak 3 | . 3 2 . 1 Penetration Max . | . . . . . Secondary Targets . | . . . . . Shots Hit Robots 87 | . 60 25 . 2 Core Hits 36 | . 24 10 . 2 Critical Kills . | . . . . . Critical Parts Destroyed . | . . . . . Critical Strikes 4 | . 2 2 . . Burn 4 | . 2 2 . . Melee Attacks . | . . . . . Impact . | . . . . . Slashing . | . . . . . Piercing . | . . . . . Sneak Attacks . | . . . . . Combat Hostiles . | . . . . . Follow-up Attacks . | . . . . . Damage Inflicted 1298 | . 745 312 . 241 Guns 1054 | . 742 312 . . Cannons . | . . . . . Explosions 241 | . . . . 241 Melee . | . . . . . Ramming 3 | . 3 . . . Kinetic . | . . . . . Thermal 997 | . 742 255 . . Explosive 241 | . . . . 241 Electromagnetic 57 | . . 57 . . Impact . | . . . . . Slashing . | . . . . . Piercing . | . . . . . Highest Corruption . | . . . . . Average Corruption . | . . . . . Corruption Purged . | . . . . . Corruption Blocked . | . . . . . Overload Shots . | . . . . . Overflow Damage . | . . . . . Projectiles . | . . . . . Explosions . | . . . . . Melee . | . . . . . Knockbacks . | . . . . . Impact . | . . . . . Kinetic . | . . . . . Secondary . | . . . . . Self-Inflicted Damage . | . . . . . Shots . | . . . . . Rammed . | . . . . . Targets Rammed 1 | . 1 . . . Kicked 1 | . 1 . . . Crushed . | . . . . . Highest Temperature 396 | . 288 396 3 . Average Temperature 93 | . 63 159 2 . Received Heat Transfer 435 | . 192 153 60 30 Effects 3 | . . 3 . . Energy Bleed 3 | . . 3 . . Siege Activations . | . . . . . Robots Corrupted . | . . . . . Combat Hostiles . | . . . . . Parts Fried . | . . . . . Impact Corruptions . | . . . . . Robots Melted . | . . . . . Combat Hostiles . | . . . . . Parts Melted 5 | . 4 1 . . Heat Transferred 3233 | . 2368 865 . . Parts Sabotaged . | . . . . . Parts Stolen . | . . . . . Parts Stripped . | . . . . . Power Chain Reactions . | . . . . . Alert | -11 -10 -10 -10 -9 ------- Run | Yrd Mat Min Exi Min Peak Influence 210 | . 210 50 . 50 Initial 14 | . . 14 . . Average 43 | . 55 25 . 30 Maximum Alert Level 1 | . 1 . . . Low Security (%) 96 | . 93 100 . 100 Level 1 3 | . 6 . . . Level 2 . | . . . . . Level 3 . | . . . . . Level 4 . | . . . . . Level 5 . | . . . . . High Security . | . . . . . Max Security . | . . . . . Squads Dispatched 2 | . 2 . . . Investigation . | . . . . . Extermination . | . . . . . Reinforcement 2 | . 2 . . . Assault . | . . . . . Garrison . | . . . . . Intercept . | . . . . . Searches Triggered . | . . . . . Construction Impeded . | . . . . . Haulers Reinforced . | . . . . . Active Scanning Responses . | . . . . . Cargo Convoy Interrupts . | . . . . . Stealth | -11 -10 -10 -10 -9 --------- Run | Yrd Mat Min Exi Min Distress Signals 3 | . 3 . . . Communications Jammed . | . . . . . Distress Signals . | . . . . . Times Spotted 40 | . 26 4 7 3 Peak Tracking Total 10 | . 4 2 10 3 Tactical Retreats 2 | . 1 . 1 . Traps | -11 -10 -10 -10 -9 ------- Run | Yrd Mat Min Exi Min Traps Triggered 2 | . 1 1 . . Indirectly . | . . . . . Trap Hack Attempts . | . . . . . Triggered . | . . . . . Disarmed . | . . . . . Reprogrammed . | . . . . . Reused . | . . . . . Traps Extracted . | . . . . . Installed 1 | . . 1 . . Triggered . | . . . . . Most Traps Carried 5 | . . 5 4 1 Machines | -11 -10 -10 -10 -9 ---------- Run | Yrd Mat Min Exi Min Machines Disabled 2 | . . . 2 . Max in Single Turn 1 | . . . 1 . Machines Repaired . | . . . . . Machines Dismantled . | . . . . . Machines Sabotaged . | . . . . . Overloaded Fab Kills . | . . . . . Hacking | -11 -10 -10 -10 -9 --------- Run | Yrd Mat Min Exi Min Machines Accessed 5 | . 4 . 1 . Terminals 4 | . 4 . . . Fabricators . | . . . . . Repair Stations . | . . . . . Recycling Units . | . . . . . Scanalyzers . | . . . . . Garrison Access . | . . . . . Total Hacks 14 | . 10 . 4 . Successful 8 | . 4 . 4 . Failed 6 | . 6 . . . Catastrophic . | . . . . . Database Lockouts . | . . . . . Manual 9 | . 9 . . . Terminals 10 | . 10 . . . Fabricators . | . . . . . Repair Stations . | . . . . . Recycling Units . | . . . . . Scanalyzers . | . . . . . Garrison Access . | . . . . . Terminal Hacks 5 | . 1 . 4 . Record 4 | . . . 4 . Zone Layout 1 | . 1 . . . Fabricator Hacks . | . . . . . Repair Station Hacks . | . . . . . Recycling Unit Hacks . | . . . . . Scanalyzer . | . . . . . Garrison Access Hacks . | . . . . . Unauthorized Hacks 3 | . 3 . . . Terminals 3 | . 3 . . . Botnet 3 | . 3 . . . Fabricators . | . . . . . Repair Stations . | . . . . . Recycling Units . | . . . . . Scanalyzers . | . . . . . Garrison Access . | . . . . . Data Cores Recovered . | . . . . . Used . | . . . . . Hacking Detections 3 | . 3 . . . Full Trace Events . | . . . . . Feedback Events . | . . . . . Feedback Blocked . | . . . . . Robot Schematics Acquired . | . . . . . Robots Built . | . . . . . Authchips . | . . . . . Time . | . . . . . Total Robot Build Rating . | . . . . . Part Schematics Acquired . | . . . . . Parts Built . | . . . . . Authchips . | . . . . . Time . | . . . . . Total Part Build Rating . | . . . . . Parts Repaired . | . . . . . Time . | . . . . . Parts Recycled . | . . . . . Recycled Matter . | . . . . . Retrieved Matter . | . . . . . Retrieved Components . | . . . . . Parts Scanalyzed . | . . . . . Part Schematics Acquired . | . . . . . Parts Damaged . | . . . . . Bothacking | -11 -10 -10 -10 -9 ------------ Run | Yrd Mat Min Exi Min Used RIF Installer . | . . . . . Robots Hacked . | . . . . . Non-combat . | . . . . . Combat . | . . . . . Robot Hacks Applied . | . . . . . Relay Couplers Released . | . . . . . Fabnet Peak Effective % . | . . . . . Robots Rewired . | . . . . . Allies Hacked . | . . . . . Hacks Repelled . | . . . . . Allies | -11 -10 -10 -10 -9 -------- Run | Yrd Mat Min Exi Min Total Allies . | . . . . . Largest Group . | . . . . . Highest-Rated Group . | . . . . . Highest-Rated Ally . | . . . . . Total Orders . | . . . . . Ally Attacks . | . . . . . Total Damage . | . . . . . Kills . | . . . . . Allies Corrupted . | . . . . . Allies Melted . | . . . . . Intel | -11 -10 -10 -10 -9 ------- Run | Yrd Mat Min Exi Min Robot Analysis Total . | . . . . . Derelict Logs Recovered 1 | . . 1 . . Drone Launches . | . . . . . Drone Recoveries . | . . . . . Exploration | -11 -10 -10 -10 -9 ------------- Run | Yrd Mat Min Exi Min Turns Passed 2112 | . 943 615 548 6 Spaces Moved 908 | 1 484 206 217 . Core . | . . . . . Treads . | . . . . . Legs 908 | 1 484 206 217 . Wheels . | . . . . . Hover . | . . . . . Flight . | . . . . . Fastest Speed 120 | 120 120 260 120 . Average Speed 196 | 120 149 260 242 . Slowest Speed 260 | 120 260 260 260 . Overloaded Moves . | . . . . . Propulsion Burnouts . | . . . . . Robots Hopped . | . . . . . Cave-ins Triggered . | . . . . . Exploration Rate (%) 35 | 2 70 51 49 4 Regions Visited 4 Branch Regions 3 Pre-discovered Areas 1 | . . . 1 . Known Exits Taken 1 | . 1 . . . Unknown Exits Taken 3 | 1 . 1 1 . Scrap Searched 1 | . . 1 . . Spaces Dug . | . . . . . Terrain Destroyed 22 | . . . . 22 Melee . | . . . . . Projectile . | . . . . . AOE 22 | . . . . 22 Terrain Rammed . | . . . . . Walls Destroyed . | . . . . . Machines Disabled . | . . . . . Actions | -11 -10 -10 -10 -9 --------- Run | Yrd Mat Min Exi Min Total 1113 | . 618 252 240 3 Wait 71 | . 62 9 . . Move 904 | . 483 205 216 . Hop . | . . . . . Pick Up 15 | . 6 6 3 . Fast Attach 8 | . 5 1 2 . Attach 4 | . . 4 . . Detach 1 | . 1 . . . Swap 12 | . 7 3 1 1 Drop 26 | . 9 1 16 . Fire 68 | . 44 20 2 2 Melee . | . . . . . Ram . | . . . . . Kick 1 | . 1 . . . Crush . | . . . . . Escape Stasis 2 | . . 2 . . Rewire . | . . . . . Trap 1 | . . 1 . . Miscellaneous . | . . . . . Route ------- -11/Scrapyard -10/Materials (discovered 4 exits: [*Mat x2] / *Min x2) -10/Mines (discovered 2 exits: [*Mat] / *Exi) -10/Exiles -9/Mines History --------- Turn | Location | Event 1 | -11/Scrapyard | Discovered new exit (range 0) 1 | -11/Scrapyard | Entered Materials 87 | -10/Materials | Discovered new exit (range 6) 91 | -10/Materials | Identified exit to Mines 147 | -10/Materials | Discovered new exit (range 6) 335 | -10/Materials | Build established: Mutant 609 | -10/Materials | Discovered new exit (range 11) 801 | -10/Materials | Derelicts attacked the area 882 | -10/Materials | Discovered exit to Mines (range 11) 944 | -10/Materials | Entered Mines 1043 | -10/Mines | Found a hidden stash of uninstalled traps 1188 | -10/Mines | Discovered new exit (range 8) 1242 | -10/Mines | Core integrity fell below 50% 1352 | -10/Mines | Learned Materials terminal intel 1403 | -10/Mines | Lost 3 parts (1p1n1w) 1532 | -10/Mines | Deemed a non-threat by the Exiles lab entrance 1535 | -10/Mines | Discovered new exit (range 5) 1537 | -10/Mines | Received a Rocket Launcher from a helpful Derelict 1559 | -10/Mines | Entered Exiles 1632 | -10/Exiles | Met 8R-AWN 1671 | -10/Exiles | Met EX-HEX 1782 | -10/Exiles | Met EX-DEC 1803 | -10/Exiles | Learned location of Zion (-7) 1937 | -10/Exiles | Discovered new exit (range 14) 2048 | -10/Exiles | Attacked by the Exiles 2085 | -10/Exiles | Core integrity fell below 20% 2107 | -10/Exiles | Entered Mines 2113 | -9/Mines | Destroyed by G-34 Mercenary with Small Laser Last Messages --------------- 02079_ Dropped Structural Scanner. 02079_ as-53901 destroyed. 02079_ as-14517 destroyed. 02079_ Dropped Hammer. 02080_ Dropped Hcp. Storage Unit. 02081_ Rigged Lgt. Fission Core explodes. 02081_ as-71068 destroyed. 02081_ as-88962 destroyed. 02082_ Dropped Rigged Fission Core. 02087_ Rigged Fission Core explodes. LOCATION=UNKNOWN GOAL=ESCAPE 02108_ A derelict emerges from the shadows: "Quick, help me dispose of these Unaware!" 02108_ T-07 Excavator is excavating. 02108_ B-36 Bruiser: "SECOND INTRUDER APPROACHING. ELIMINATE." 02108_ Aluminum Leg destroyed. 02109_ B-36 Bruiser destroyed. 02109_ T-07 Excavator destroyed. 02112_ G-34 Mercenary suffers critical hit (Burn). Map ----- +----------------------------------------------------+ | ????????????????????????????????????? | | ????????????????????????????????????? | | ????????????????????????????????????? | | ????????????????????????????????????? | | ????????????????????????????????????? | | ????????????????????????????????????? | | ????????????????????????????????????? | | ????????????????????????????????????? | | ????????????????????????????????????? | | ????????????????????????????????????? | | ????????????????????????????????????? | | ????????????####????????????????????? | | ???????????? #????????????????????? | | ???????????# ####?????????????????? | | ??????????? #?????????????????? | | ??????????? ??????????????????? | | ??????????? g% ??????????????????? | | ??????????? g #??????????????????? | | ???????????! ##?????????????????? | | ???????????% ??????????????????? | | ??????????? ???????????????????? | | ???????????# #???????????????????? | | ??????????## ##??????????????????? | | ??????????# ##?????????????????? | | ??????????# g ##????????????????? | | ??????????# @ #????????????????? | | ??????????## #???????????????? | | ???????????#### #???????????????? | | ???????????????? #???????????????? | | ?????????????????# ##???????????????? | | ???????????????????#????????????????? | | ????????????????????????????????????? | | ????????????????????????????????????? | | ????????????????????????????????????? | | ????????????????????????????????????? | | ????????????????????????????????????? | | | | | | | | | | | | | | | | | | | | | | | | | | | | | +----------------------------------------------------+ Best States ------------- Heat Dissipation 39 Energy Generation 14 Energy Capacity 250 Matter Stores 300 Matter Capacity 300 Sight Range 16 Terrain Scan Density 10 Evasion (%) 55 Item Schematics ----------------- None Robot Schematics ------------------ None Fabricated ------------ Nothing Alien Tech Used ----------------- None Achievements -------------- None Challenges ------------ None Game ------ Seed DimensionalCloakingPick Manual? 0 Play Time 00:09:40 Cumulative 220.2 hours Start 2024.04.16 @ 21:54:21 End 2024.04.17 @ 20:16:03 Sessions 2 Manual Loads 0 Difficulty Rogue Special Mode None Game No. 217 Rogue 217 Adventurer 0 Explorer 0 Win Type - Total 6 Types 4/0/0/1/1/0/0/0/0 Lore% 69 Gallery% 78 Achievement% 65 Wizard Run 0 Options --------- Layout 0 ASCII 0 Keyboard 0 Movement Numpad Keybinds 0 Fullscreen 2 Font 18/SmallcapsGlow Map View 76x50 Zoom Use 0% Tactical HUD 1 Map Filters NONE Filters NONE Steam 1 RUN: d35a7f97-2d6e-492f-ad68-7695612ea3b4